[Event "Live Chess"]
[Site "Chess.com"]
[Date "2023.05.21"]
[Round "-"]
[White "BillythekidFellowes"]
[Black "raminguy"]
[Result "1-0"]
[WhiteElo "2038"]
[BlackElo "1939"]
[TimeControl "300"]
[EndTime "23:06:21 PDT"]
[Termination "BillythekidFellowes won on time"]

1. e4 {[%clk 0:04:50.9]} 1... e5 {[%clk 0:04:58.7]} 2. Nf3 {[%clk 0:04:50]} 2...
Nc6 {[%clk 0:04:57.9]} 3. Bc4 {[%clk 0:04:47.4]} 3... Bc5 {[%clk 0:04:57.1]} 4.
Nc3 {[%clk 0:04:44.5]} 4... Nf6 {[%clk 0:04:56.4]} 5. d3 {[%clk 0:04:41.7]} 5...
h6 {[%clk 0:04:55.9]} 6. Be3 {[%clk 0:04:40.4]} 6... Bxe3 {[%clk 0:04:55.3]} 7.
fxe3 {[%clk 0:04:40.3]} 7... O-O {[%clk 0:04:54.5]} 8. O-O {[%clk 0:04:39.4]}
8... d6 {[%clk 0:04:53.8]} 9. d4 {[%clk 0:04:37]} 9... Ng4 {[%clk 0:04:50.1]}
10. Qe2 {[%clk 0:04:34.9]} 10... exd4 {[%clk 0:04:48.7]} 11. exd4 {[%clk
0:04:34.8]} 11... Na5 {[%clk 0:04:42.5]} 12. Bb3 {[%clk 0:04:20.3]} 12... Nxb3
{[%clk 0:04:40]} 13. axb3 {[%clk 0:04:20.2]} 13... a6 {[%clk 0:04:38.9]} 14. h3
{[%clk 0:04:18.5]} 14... Nf6 {[%clk 0:04:36.6]} 15. e5 {[%clk 0:04:14]} 15...
dxe5 {[%clk 0:04:34.6]} 16. dxe5 {[%clk 0:04:13.9]} 16... Nh7 {[%clk 0:04:27.6]}
17. Rad1 {[%clk 0:04:11]} 17... Qe7 {[%clk 0:03:59]} 18. Nd5 {[%clk 0:04:08.9]}
18... Qc5+ {[%clk 0:03:58.1]} 19. Kh1 {[%clk 0:04:07.8]} 19... c6 {[%clk
0:03:44.9]} 20. Nf4 {[%clk 0:04:06.1]} 20... Re8 {[%clk 0:03:25.6]} 21. c3
{[%clk 0:03:19.2]} 21... a5 {[%clk 0:03:21.4]} 22. Rfe1 {[%clk 0:03:04.7]} 22...
Bf5 {[%clk 0:03:08.6]} 23. Nd4 {[%clk 0:02:57.5]} 23... Bc8 {[%clk 0:02:41.5]}
24. Nd3 {[%clk 0:02:18.2]} 24... Qb6 {[%clk 0:02:12]} 25. Nf3 {[%clk 0:01:41.5]}
25... Nf8 {[%clk 0:02:09]} 26. Rf1 {[%clk 0:01:37]} 26... Qxb3 {[%clk
0:02:03.5]} 27. Nd4 {[%clk 0:01:33.5]} 27... Qb6 {[%clk 0:01:56.3]} 28. Qh5
{[%clk 0:01:29.2]} 28... Re7 {[%clk 0:01:48.7]} 29. Rf3 {[%clk 0:01:22.1]} 29...
c5 {[%clk 0:01:30.3]} 30. Nc2 {[%clk 0:00:55.1]} 30... c4 {[%clk 0:01:17]} 31.
Nf4 {[%clk 0:00:49.9]} 31... Qxb2 {[%clk 0:01:15.1]} 32. Ne3 {[%clk 0:00:47.4]}
32... a4 {[%clk 0:01:05.7]} 33. Nfd5 {[%clk 0:00:36.9]} 33... Rd7 {[%clk
0:00:28]} 34. Rdf1 {[%clk 0:00:24.4]} 34... Rxd5 {[%clk 0:00:19.3]} 35. Qxf7+
{[%clk 0:00:21.4]} 35... Kh7 {[%clk 0:00:17.9]} 36. Nxd5 {[%clk 0:00:18.9]}
36... Be6 {[%clk 0:00:16.3]} 37. Nf6+ {[%clk 0:00:10.7]} 37... Kh8 {[%clk
0:00:11.9]} 38. Qh5 {[%clk 0:00:10.6]} 38... a3 {[%clk 0:00:08.2]} 39. Ng4
{[%clk 0:00:05.7]} 39... Bxg4 {[%clk 0:00:06.3]} 40. hxg4 {[%clk 0:00:04.8]}
40... Nh7 {[%clk 0:00:02.5]} 41. Rf7 {[%clk 0:00:04.6]} 1-0

[Event "Live Chess"]
[Site "Chess.com"]
[Date "2023.05.21"]
[Round "-"]
[White "Mugzwang"]
[Black "Doge_Dandolo"]
[Result "1-0"]
[WhiteElo "1641"]
[BlackElo "1895"]
[TimeControl "300"]
[EndTime "23:07:01 PDT"]
[Termination "Mugzwang won on time"]

1. Nf3 {[%clk 0:04:58]} 1... Nf6 {[%clk 0:04:58.5]} 2. d4 {[%clk 0:04:55.7]}
2... d5 {[%clk 0:04:57.3]} 3. g3 {[%clk 0:04:48.9]} 3... Bf5 {[%clk 0:04:53]} 4.
Bg2 {[%clk 0:04:47.1]} 4... c6 {[%clk 0:04:51]} 5. O-O {[%clk 0:04:45.9]} 5...
e6 {[%clk 0:04:50.1]} 6. c4 {[%clk 0:04:37.1]} 6... Be7 {[%clk 0:04:47.2]} 7.
Nc3 {[%clk 0:04:35.5]} 7... O-O {[%clk 0:04:45.5]} 8. cxd5 {[%clk 0:04:34.3]}
8... exd5 {[%clk 0:04:43.4]} 9. Qb3 {[%clk 0:04:30.2]} 9... Qc8 {[%clk
0:04:39.1]} 10. Bf4 {[%clk 0:04:22.6]} 10... Nbd7 {[%clk 0:04:37.4]} 11. Rac1
{[%clk 0:04:18.7]} 11... Nb6 {[%clk 0:04:30.4]} 12. Ne5 {[%clk 0:04:10.8]} 12...
Nh5 {[%clk 0:04:17.2]} 13. Bd2 {[%clk 0:04:04.1]} 13... Nf6 {[%clk 0:04:09.9]}
14. Bf4 {[%clk 0:04:01.9]} 14... Re8 {[%clk 0:04:01.3]} 15. Rfe1 {[%clk
0:03:57.6]} 15... Bf8 {[%clk 0:03:47.4]} 16. a4 {[%clk 0:03:42.2]} 16... Ne4
{[%clk 0:03:25.2]} 17. Nxe4 {[%clk 0:03:33.5]} 17... Bxe4 {[%clk 0:03:22.7]} 18.
Bxe4 {[%clk 0:03:31.5]} 18... dxe4 {[%clk 0:03:21.6]} 19. Qxf7+ {[%clk
0:03:28.7]} 19... Kh8 {[%clk 0:03:20.1]} 20. Qh5 {[%clk 0:03:22.9]} 20... Kg8
{[%clk 0:03:14.2]} 21. Qf7+ {[%clk 0:03:20.6]} 21... Kh8 {[%clk 0:03:13.2]} 22.
Qh5 {[%clk 0:03:20.1]} 22... Re7 {[%clk 0:03:02.3]} 23. Ng6+ {[%clk 0:03:05.3]}
23... Kg8 {[%clk 0:02:59.8]} 24. Nxe7+ {[%clk 0:03:04.2]} 24... Bxe7 {[%clk
0:02:58.6]} 25. Qe5 {[%clk 0:02:50.1]} 25... Bf6 {[%clk 0:02:53.9]} 26. Qxe4
{[%clk 0:02:47.1]} 26... Qd7 {[%clk 0:02:48.2]} 27. e3 {[%clk 0:02:38.9]} 27...
Nd5 {[%clk 0:02:44.1]} 28. Rc5 {[%clk 0:02:32.9]} 28... Re8 {[%clk 0:02:40.7]}
29. Qg2 {[%clk 0:02:21.5]} 29... Nb4 {[%clk 0:02:35.5]} 30. Rh5 {[%clk
0:02:08.6]} 30... g6 {[%clk 0:02:24.8]} 31. Rh6 {[%clk 0:01:57.6]} 31... Qg7
{[%clk 0:02:17.8]} 32. Qh3 {[%clk 0:01:50.7]} 32... Nd5 {[%clk 0:01:53.3]} 33.
Be5 {[%clk 0:01:43]} 33... Bxe5 {[%clk 0:01:48.5]} 34. dxe5 {[%clk 0:01:41.9]}
34... Rxe5 {[%clk 0:01:44.2]} 35. Qc8+ {[%clk 0:01:28.4]} 35... Kf7 {[%clk
0:01:40.1]} 36. Rh4 {[%clk 0:01:10.7]} 36... Re7 {[%clk 0:01:36.5]} 37. Qh3
{[%clk 0:01:04.5]} 37... Kg8 {[%clk 0:01:31.7]} 38. Qc8+ {[%clk 0:00:59.4]}
38... Kf7 {[%clk 0:01:30.1]} 39. Qh3 {[%clk 0:00:54.6]} 39... h5 {[%clk
0:01:26.6]} 40. e4 {[%clk 0:00:43.7]} 40... Nf6 {[%clk 0:01:10.3]} 41. Rf4
{[%clk 0:00:42.2]} 41... Kg8 {[%clk 0:01:02.2]} 42. Qc8+ {[%clk 0:00:36.6]}
42... Kh7 {[%clk 0:01:00.8]} 43. Rd1 {[%clk 0:00:29.2]} 43... Nxe4 {[%clk
0:00:53.3]} 44. Re1 {[%clk 0:00:23.9]} 44... Ng5 {[%clk 0:00:47.5]} 45. Rxe7
{[%clk 0:00:21.4]} 45... Qxe7 {[%clk 0:00:45.8]} 46. Qf8 {[%clk 0:00:18]} 46...
Qd7 {[%clk 0:00:19.6]} 47. Qb4 {[%clk 0:00:12.5]} 47... Nh3+ {[%clk 0:00:13.8]}
48. Kg2 {[%clk 0:00:09.9]} 48... Nxf4+ {[%clk 0:00:11.3]} 49. Qxf4 {[%clk
0:00:07.5]} 49... Kg7 {[%clk 0:00:07.5]} 50. Qe3 {[%clk 0:00:05.3]} 50... Qd5+
{[%clk 0:00:06]} 51. Kg1 {[%clk 0:00:03.6]} 51... Qb3 {[%clk 0:00:03.5]} 52. Kg2
{[%clk 0:00:03.1]} 52... Qd1 {[%clk 0:00:00.9]} 53. Qc3+ {[%clk 0:00:01.2]} 1-0

[Event "Live Chess"]
[Site "Chess.com"]
[Date "2023.05.21"]
[Round "-"]
[White "martinsmartin63"]
[Black "Ocelot32"]
[Result "0-1"]
[WhiteElo "761"]
[BlackElo "1366"]
[TimeControl "300"]
[EndTime "23:07:02 PDT"]
[Termination "Ocelot32 won by checkmate"]

1. e4 {[%clk 0:04:57.1]} 1... e6 {[%clk 0:04:58.2]} 2. Nf3 {[%clk 0:04:52]} 2...
d5 {[%clk 0:04:55.7]} 3. d4 {[%clk 0:04:48.7]} 3... dxe4 {[%clk 0:04:53.2]} 4.
Ne5 {[%clk 0:04:47.1]} 4... Nf6 {[%clk 0:04:49.9]} 5. Nc3 {[%clk 0:04:43]} 5...
Be7 {[%clk 0:04:42.1]} 6. f3 {[%clk 0:04:38.2]} 6... exf3 {[%clk 0:04:37.4]} 7.
Qxf3 {[%clk 0:04:35.7]} 7... Bd7 {[%clk 0:04:28.5]} 8. Bb5 {[%clk 0:04:30.3]}
8... c6 {[%clk 0:04:25.2]} 9. Bd3 {[%clk 0:04:25.2]} 9... O-O {[%clk 0:04:23.7]}
10. Nxd7 {[%clk 0:04:20.1]} 10... Nbxd7 {[%clk 0:04:22.1]} 11. Kf1 {[%clk
0:04:12.9]} 11... Qb6 {[%clk 0:04:10.2]} 12. Qh3 {[%clk 0:04:03.8]} 12... Qxd4
{[%clk 0:04:05.1]} 13. Bg5 {[%clk 0:03:58.4]} 13... Rad8 {[%clk 0:03:45.7]} 14.
Bxf6 {[%clk 0:03:54.2]} 14... Nxf6 {[%clk 0:03:44.5]} 15. Rd1 {[%clk 0:03:43.5]}
15... Qf4+ {[%clk 0:03:38.8]} 16. Kg1 {[%clk 0:03:37.3]} 16... Bc5+ {[%clk
0:03:32.1]} 17. Qe3 {[%clk 0:03:23.5]} 17... Bxe3# {[%clk 0:03:29.8]} 0-1

[Event "Live Chess"]
[Site "Chess.com"]
[Date "2023.05.21"]
[Round "-"]
[White "matt1979"]
[Black "Singapourfeuj"]
[Result "0-1"]
[WhiteElo "1523"]
[BlackElo "2214"]
[TimeControl "300"]
[EndTime "23:07:47 PDT"]
[Termination "Singapourfeuj won by resignation"]

1. f4 {[%clk 0:04:58.2]} 1... e5 {[%clk 0:04:57.9]} 2. fxe5 {[%clk 0:04:57]}
2... d6 {[%clk 0:04:56.6]} 3. exd6 {[%clk 0:04:56]} 3... Bxd6 {[%clk 0:04:55.6]}
4. Nf3 {[%clk 0:04:54]} 4... Nf6 {[%clk 0:04:54.5]} 5. d4 {[%clk 0:04:51.8]}
5... Bg4 {[%clk 0:04:53]} 6. Qd3 {[%clk 0:04:50.2]} 6... Nc6 {[%clk 0:04:50.9]}
7. c3 {[%clk 0:04:48.2]} 7... O-O {[%clk 0:04:49]} 8. e4 {[%clk 0:04:39.2]} 8...
Bxf3 {[%clk 0:04:47.9]} 9. gxf3 {[%clk 0:04:29.4]} 9... Nh5 {[%clk 0:04:44.4]}
10. Qe2 {[%clk 0:04:00.4]} 10... Qh4+ {[%clk 0:04:41.6]} 11. Kd1 {[%clk
0:03:51.1]} 11... Rad8 {[%clk 0:04:35.4]} 12. Be3 {[%clk 0:03:43.3]} 12... Nf4
{[%clk 0:04:30.8]} 13. Bxf4 {[%clk 0:03:41.5]} 13... Bxf4 {[%clk 0:04:29.8]} 14.
Nd2 {[%clk 0:03:35.2]} 14... Nxd4 {[%clk 0:04:28.4]} 15. cxd4 {[%clk 0:03:33.7]}
15... Rxd4 {[%clk 0:04:27]} 16. h3 {[%clk 0:03:12.9]} 16... Rxd2+ {[%clk
0:04:25.6]} 17. Qxd2 {[%clk 0:03:12.2]} 17... Bxd2 {[%clk 0:04:24.6]} 18. Kxd2
{[%clk 0:03:11.6]} 18... Qf2+ {[%clk 0:04:23.6]} 19. Be2 {[%clk 0:03:04.8]}
19... Rd8+ {[%clk 0:04:22.3]} 0-1

[Event "Live Chess"]
[Site "Chess.com"]
[Date "2023.05.21"]
[Round "-"]
[White "OleksiyJr1"]
[Black "Tushinskiy"]
[Result "0-1"]
[WhiteElo "965"]
[BlackElo "2200"]
[TimeControl "300"]
[EndTime "23:07:51 PDT"]
[Termination "Tushinskiy won by resignation"]

1. e4 {[%clk 0:04:53.8]} 1... e5 {[%clk 0:04:59]} 2. Nf3 {[%clk 0:04:53.1]} 2...
d6 {[%clk 0:04:58.9]} 3. Bc4 {[%clk 0:04:52.1]} 3... Bg4 {[%clk 0:04:58.8]} 4.
Nc3 {[%clk 0:04:51.2]} 4... Nf6 {[%clk 0:04:57.8]} 5. d3 {[%clk 0:04:49.8]} 5...
Nbd7 {[%clk 0:04:56.2]} 6. Bg5 {[%clk 0:04:47.6]} 6... Be7 {[%clk 0:04:54.8]} 7.
h3 {[%clk 0:04:46.8]} 7... Bh5 {[%clk 0:04:52.9]} 8. O-O {[%clk 0:04:45.3]} 8...
c6 {[%clk 0:04:51]} 9. a3 {[%clk 0:04:36.4]} 9... O-O {[%clk 0:04:47.9]} 10. b4
{[%clk 0:04:34.4]} 10... Qc7 {[%clk 0:04:36.9]} 11. Bb3 {[%clk 0:04:17.4]} 11...
Rad8 {[%clk 0:04:28.8]} 12. Ne2 {[%clk 0:04:11.7]} 12... Bxf3 {[%clk 0:04:14]}
13. Bxf6 {[%clk 0:04:08.4]} 13... Bxe2 {[%clk 0:04:11.2]} 14. Qxe2 {[%clk
0:04:06.4]} 14... Nxf6 {[%clk 0:04:09]} 15. g4 {[%clk 0:04:00.1]} 15... d5
{[%clk 0:04:07]} 0-1

[Event "Live Chess"]
[Site "Chess.com"]
[Date "2023.05.21"]
[Round "-"]
[White "mirandaasilva"]
[Black "elephantgerrald"]
[Result "1-0"]
[WhiteElo "1652"]
[BlackElo "369"]
[TimeControl "300"]
[EndTime "23:08:12 PDT"]
[Termination "mirandaasilva won by checkmate"]

1. g3 {[%clk 0:04:57.4]} 1... d5 {[%clk 0:04:58.3]} 2. d4 {[%clk 0:04:57.3]}
2... Nc6 {[%clk 0:04:56.7]} 3. Bg2 {[%clk 0:04:57.2]} 3... b6 {[%clk 0:04:55.1]}
4. f4 {[%clk 0:04:53.8]} 4... Bb7 {[%clk 0:04:51.3]} 5. e3 {[%clk 0:04:52.8]}
5... Nf6 {[%clk 0:04:49.7]} 6. Ne2 {[%clk 0:04:52.4]} 6... g6 {[%clk 0:04:45.8]}
7. Nd2 {[%clk 0:04:51.8]} 7... Bg7 {[%clk 0:04:44.4]} 8. c3 {[%clk 0:04:51.6]}
8... O-O {[%clk 0:04:42.6]} 9. O-O {[%clk 0:04:51.1]} 9... e6 {[%clk 0:04:41.4]}
10. Kh1 {[%clk 0:04:51]} 10... h5 {[%clk 0:04:34.3]} 11. Ng1 {[%clk 0:04:43.9]}
11... Ba6 {[%clk 0:04:10.9]} 12. Rf2 {[%clk 0:04:41.9]} 12... Ng4 {[%clk
0:04:05.2]} 13. Rf3 {[%clk 0:04:32.5]} 13... Bd3 {[%clk 0:03:55.3]} 14. h3
{[%clk 0:04:22.1]} 14... Be4 {[%clk 0:03:45]} 15. hxg4 {[%clk 0:03:57]} 15...
Bxf3 {[%clk 0:03:41]} 16. Qxf3 {[%clk 0:03:53.4]} 16... hxg4 {[%clk 0:03:39.2]}
17. Qxg4 {[%clk 0:03:52.1]} 17... f5 {[%clk 0:03:36.8]} 18. Qe2 {[%clk
0:03:37.2]} 18... g5 {[%clk 0:03:32.2]} 19. fxg5 {[%clk 0:03:32.8]} 19... Qxg5
{[%clk 0:03:30.4]} 20. Nf1 {[%clk 0:03:29.5]} 20... Qh6+ {[%clk 0:03:25.9]} 21.
Nh3 {[%clk 0:03:26.8]} 21... Kf7 {[%clk 0:03:18.6]} 22. e4 {[%clk 0:03:23.6]}
22... fxe4 {[%clk 0:03:14.6]} 23. Bxh6 {[%clk 0:03:21.2]} 23... Bxh6 {[%clk
0:03:11.1]} 24. Ne3 {[%clk 0:03:19.4]} 24... Bxe3 {[%clk 0:03:08.5]} 25. Qxe3
{[%clk 0:03:19.3]} 25... Ke8 {[%clk 0:03:06.3]} 26. Rf1 {[%clk 0:03:16.8]} 26...
Rxf1+ {[%clk 0:03:03.1]} 27. Bxf1 {[%clk 0:03:16.7]} 27... Kd7 {[%clk
0:03:01.6]} 28. Bb5 {[%clk 0:03:15.7]} 28... Rh8 {[%clk 0:02:57.6]} 29. Kg2
{[%clk 0:03:14.4]} 29... a5 {[%clk 0:02:54.4]} 30. Qg5 {[%clk 0:03:13.3]} 30...
Kd6 {[%clk 0:02:47.3]} 31. Qf4+ {[%clk 0:03:10.8]} 31... e5 {[%clk 0:02:38.7]}
32. Qf6+ {[%clk 0:03:06.1]} 32... Kd7 {[%clk 0:02:36.7]} 33. Qxc6+ {[%clk
0:03:06]} 33... Ke7 {[%clk 0:02:35.3]} 34. Qd7+ {[%clk 0:03:04.1]} 34... Kf6
{[%clk 0:02:34]} 35. g4 {[%clk 0:03:00.1]} 35... e3 {[%clk 0:02:32]} 36. g5+
{[%clk 0:02:59.5]} 36... Kg6 {[%clk 0:02:30.3]} 37. Qe6+ {[%clk 0:02:53.2]}
37... Kh5 {[%clk 0:02:28.3]} 38. Be2+ {[%clk 0:02:42.8]} 38... Kh4 {[%clk
0:02:25.3]} 39. Qg4# {[%clk 0:02:42.7]} 1-0

[Event "Live Chess"]
[Site "Chess.com"]
[Date "2023.05.21"]
[Round "-"]
[White "peter-785"]
[Black "nigelst"]
[Result "0-1"]
[WhiteElo "1208"]
[BlackElo "1720"]
[TimeControl "300"]
[EndTime "23:08:25 PDT"]
[Termination "nigelst won by resignation"]

1. e4 {[%clk 0:04:59]} 1... c6 {[%clk 0:04:58.6]} 2. Nf3 {[%clk 0:04:58.3]} 2...
d5 {[%clk 0:04:57.3]} 3. exd5 {[%clk 0:04:55.9]} 3... cxd5 {[%clk 0:04:56.2]} 4.
d4 {[%clk 0:04:55.3]} 4... Nf6 {[%clk 0:04:55]} 5. Bd3 {[%clk 0:04:52.3]} 5...
Nc6 {[%clk 0:04:53.2]} 6. c3 {[%clk 0:04:49.8]} 6... Bg4 {[%clk 0:04:51.3]} 7.
O-O {[%clk 0:04:46.6]} 7... e6 {[%clk 0:04:50]} 8. Be2 {[%clk 0:04:44.9]} 8...
Bd6 {[%clk 0:04:47.9]} 9. h3 {[%clk 0:04:42.4]} 9... Bh5 {[%clk 0:04:45.2]} 10.
Bg5 {[%clk 0:04:38.2]} 10... Rc8 {[%clk 0:04:37.1]} 11. Ne5 {[%clk 0:04:32]}
11... Bxe2 {[%clk 0:04:33.7]} 12. Qxe2 {[%clk 0:04:27.9]} 12... Be7 {[%clk
0:04:31.8]} 13. Nd2 {[%clk 0:04:05.9]} 13... O-O {[%clk 0:04:27.1]} 14. Ndf3
{[%clk 0:04:01.2]} 14... Ne4 {[%clk 0:04:22.1]} 15. Bxe7 {[%clk 0:03:56.2]}
15... Qxe7 {[%clk 0:04:19.6]} 16. Ng4 {[%clk 0:03:48.9]} 16... a6 {[%clk
0:04:06.9]} 17. Nd2 {[%clk 0:03:41.6]} 17... Nxd2 {[%clk 0:04:04]} 18. Qxd2
{[%clk 0:03:40.4]} 18... h5 {[%clk 0:03:56.1]} 19. Ne3 {[%clk 0:03:32.3]} 19...
b5 {[%clk 0:03:48.2]} 20. Qe2 {[%clk 0:03:28.1]} 20... g6 {[%clk 0:03:44.8]} 21.
f4 {[%clk 0:03:16.8]} 21... Na5 {[%clk 0:03:36.7]} 22. g4 {[%clk 0:02:52.5]}
22... hxg4 {[%clk 0:03:33.6]} 23. Qxg4 {[%clk 0:02:47]} 23... Nc4 {[%clk
0:03:28.2]} 24. Nxc4 {[%clk 0:02:36.9]} 24... bxc4 {[%clk 0:03:26.1]} 25. h4
{[%clk 0:02:31.6]} 25... Kg7 {[%clk 0:03:22.7]} 26. Rf2 {[%clk 0:02:14.3]} 26...
Rh8 {[%clk 0:03:20.6]} 27. Rh2 {[%clk 0:02:13.2]} 27... Rh5 {[%clk 0:03:13.7]}
28. Kf2 {[%clk 0:02:02]} 28... Rch8 {[%clk 0:03:11.3]} 29. Rah1 {[%clk
0:01:59.1]} 29... Qb7 {[%clk 0:03:05.9]} 30. Kf3 {[%clk 0:01:50.7]} 30... Qe7
{[%clk 0:02:51.7]} 31. Qg2 {[%clk 0:01:31.4]} 31... Rxh4 {[%clk 0:02:44.2]} 32.
Rxh4 {[%clk 0:01:29.6]} 32... Rxh4 {[%clk 0:02:42.4]} 33. Rxh4 {[%clk
0:01:26.5]} 33... Qxh4 {[%clk 0:02:40.6]} 34. Qg5 {[%clk 0:01:10.7]} 34... Qxg5
{[%clk 0:02:38.7]} 35. fxg5 {[%clk 0:01:09.6]} 35... f6 {[%clk 0:02:37.7]} 36.
Kf4 {[%clk 0:01:06.5]} 36... fxg5+ {[%clk 0:02:33.2]} 37. Kxg5 {[%clk
0:01:05.1]} 37... Kf7 {[%clk 0:02:31.8]} 38. b3 {[%clk 0:00:58.8]} 38... a5
{[%clk 0:02:21.7]} 39. bxc4 {[%clk 0:00:54.2]} 39... dxc4 {[%clk 0:02:20.3]} 40.
a3 {[%clk 0:00:48.1]} 40... a4 {[%clk 0:02:18.6]} 41. Kf4 {[%clk 0:00:44.5]}
41... Kf6 {[%clk 0:02:17.5]} 42. Kg4 {[%clk 0:00:42.5]} 42... g5 {[%clk
0:02:11.7]} 43. Kf3 {[%clk 0:00:40.4]} 43... Kf5 {[%clk 0:02:10.4]} 44. Kg3
{[%clk 0:00:36.7]} 44... g4 {[%clk 0:02:04.1]} 45. Kg2 {[%clk 0:00:34.9]} 45...
Kf4 {[%clk 0:02:02.5]} 46. Kf2 {[%clk 0:00:33.9]} 46... g3+ {[%clk 0:02:01.3]}
47. Kg2 {[%clk 0:00:30.9]} 47... Kg4 {[%clk 0:02:00.3]} 48. Kg1 {[%clk
0:00:18.5]} 48... Kf3 {[%clk 0:01:58.8]} 49. Kf1 {[%clk 0:00:17.2]} 49... Ke3
{[%clk 0:01:53.6]} 50. Kg2 {[%clk 0:00:15.1]} 50... Kd3 {[%clk 0:01:52.5]} 51.
Kxg3 {[%clk 0:00:13.8]} 51... Kxc3 {[%clk 0:01:51.4]} 52. Kf2 {[%clk 0:00:11.2]}
52... Kxd4 {[%clk 0:01:50]} 53. Ke2 {[%clk 0:00:10.2]} 53... Kc3 {[%clk
0:01:48.9]} 54. Kd1 {[%clk 0:00:08.9]} 54... Kb2 {[%clk 0:01:47.6]} 0-1

[Event "Live Chess"]
[Site "Chess.com"]
[Date "2023.05.21"]
[Round "-"]
[White "seabuck"]
[Black "Nazar_777"]
[Result "1-0"]
[WhiteElo "1894"]
[BlackElo "1606"]
[TimeControl "300"]
[EndTime "23:08:53 PDT"]
[Termination "seabuck won by checkmate"]

1. d4 {[%clk 0:04:58.6]} 1... e6 {[%clk 0:04:49.2]} 2. c4 {[%clk 0:04:57]} 2...
a6 {[%clk 0:04:48.5]} 3. Nc3 {[%clk 0:04:55.4]} 3... h5 {[%clk 0:04:47.9]} 4. e4
{[%clk 0:04:54]} 4... c5 {[%clk 0:04:47]} 5. Nf3 {[%clk 0:04:49.5]} 5... cxd4
{[%clk 0:04:45.9]} 6. Nxd4 {[%clk 0:04:48]} 6... Nc6 {[%clk 0:04:45.3]} 7. Be2
{[%clk 0:04:40.4]} 7... Nf6 {[%clk 0:04:44]} 8. Bg5 {[%clk 0:04:26.5]} 8... Be7
{[%clk 0:04:42.7]} 9. Nxc6 {[%clk 0:04:19.6]} 9... bxc6 {[%clk 0:04:41.5]} 10.
O-O {[%clk 0:04:10.3]} 10... Qc7 {[%clk 0:04:40.1]} 11. f4 {[%clk 0:03:48.7]}
11... Ng4 {[%clk 0:04:38.6]} 12. Bxe7 {[%clk 0:03:42]} 12... Kxe7 {[%clk
0:04:37.2]} 13. Bxg4 {[%clk 0:03:37.4]} 13... hxg4 {[%clk 0:04:35.6]} 14. Qxg4
{[%clk 0:03:36.3]} 14... g6 {[%clk 0:04:34.4]} 15. e5 {[%clk 0:03:25.8]} 15...
Qb6+ {[%clk 0:04:26.3]} 16. Rf2 {[%clk 0:03:16.3]} 16... c5 {[%clk 0:04:23.3]}
17. Qg5+ {[%clk 0:03:08.1]} 17... Ke8 {[%clk 0:04:21]} 18. Ne4 {[%clk
0:03:02.3]} 18... Qc6 {[%clk 0:04:07.6]} 19. Nd6+ {[%clk 0:02:51.8]} 19... Kf8
{[%clk 0:04:00.6]} 20. Qd8+ {[%clk 0:02:45.9]} 20... Kg7 {[%clk 0:03:57.1]} 21.
Qf6+ {[%clk 0:02:44.2]} 21... Kh7 {[%clk 0:03:53.9]} 22. Qxf7+ {[%clk 0:02:40]}
22... Kh6 {[%clk 0:03:51.8]} 23. Rf3 {[%clk 0:02:29.4]} 23... Qxf3 {[%clk
0:03:35.8]} 24. gxf3 {[%clk 0:02:27.1]} 24... Rh7 {[%clk 0:03:32]} 25. Qf6
{[%clk 0:02:17.7]} 25... a5 {[%clk 0:03:27.1]} 26. Nf7+ {[%clk 0:02:15.5]} 26...
Kh5 {[%clk 0:03:20.7]} 27. Qg5# {[%clk 0:02:13.3]} 1-0

[Event "Live Chess"]
[Site "Chess.com"]
[Date "2023.05.21"]
[Round "-"]
[White "Ocelot32"]
[Black "Doge_Dandolo"]
[Result "0-1"]
[WhiteElo "1365"]
[BlackElo "1896"]
[TimeControl "300"]
[EndTime "23:09:57 PDT"]
[Termination "Doge_Dandolo won by resignation"]

1. e4 {[%clk 0:04:59.1]} 1... c6 {[%clk 0:04:58.7]} 2. Nf3 {[%clk 0:04:55.8]}
2... d5 {[%clk 0:04:57.6]} 3. Nc3 {[%clk 0:04:55.3]} 3... Bg4 {[%clk 0:04:55.8]}
4. h3 {[%clk 0:04:53.4]} 4... Bxf3 {[%clk 0:04:55.1]} 5. Qxf3 {[%clk 0:04:52.7]}
5... e6 {[%clk 0:04:54.3]} 6. exd5 {[%clk 0:04:49.6]} 6... cxd5 {[%clk
0:04:52.9]} 7. d4 {[%clk 0:04:48.5]} 7... Nc6 {[%clk 0:04:51.5]} 8. a3 {[%clk
0:04:44.3]} 8... Bd6 {[%clk 0:04:50.2]} 9. Bd3 {[%clk 0:04:42.7]} 9... Qc7
{[%clk 0:04:46.8]} 10. Ne2 {[%clk 0:04:37.7]} 10... h6 {[%clk 0:04:42.1]} 11. c3
{[%clk 0:04:36.6]} 11... Nf6 {[%clk 0:04:40.7]} 12. Bf4 {[%clk 0:04:35.2]} 12...
O-O {[%clk 0:04:35.3]} 13. Bxd6 {[%clk 0:04:33.3]} 13... Qxd6 {[%clk 0:04:34.3]}
14. O-O {[%clk 0:04:32.2]} 14... Rab8 {[%clk 0:04:33.1]} 15. Bc2 {[%clk
0:04:30.8]} 15... b5 {[%clk 0:04:29.8]} 16. Qf4 {[%clk 0:04:02.6]} 16... Qxf4
{[%clk 0:04:26.1]} 17. Nxf4 {[%clk 0:04:01.5]} 17... Rfc8 {[%clk 0:04:23.7]} 18.
Nd3 {[%clk 0:04:00.1]} 18... Nxd4 {[%clk 0:04:19.7]} 19. Nb4 {[%clk 0:03:54.4]}
19... Nxc2 {[%clk 0:04:16.8]} 20. Nxc2 {[%clk 0:03:53.3]} 20... a5 {[%clk
0:04:15.4]} 21. Nd4 {[%clk 0:03:38.8]} 21... b4 {[%clk 0:04:13.3]} 22. axb4
{[%clk 0:03:37.2]} 22... axb4 {[%clk 0:04:12.2]} 23. cxb4 {[%clk 0:03:34.4]}
23... Rxb4 {[%clk 0:04:10.2]} 24. Rab1 {[%clk 0:03:33.4]} 24... Rxd4 {[%clk
0:04:08.8]} 25. b4 {[%clk 0:03:32.1]} 25... Rb8 {[%clk 0:04:06.5]} 26. b5 {[%clk
0:03:31.1]} 26... Rc4 {[%clk 0:04:04.9]} 27. b6 {[%clk 0:03:30]} 27... Rc6
{[%clk 0:04:03]} 28. b7 {[%clk 0:03:28.3]} 28... Rc7 {[%clk 0:04:02.2]} 0-1